Workbook

Sheet Отчет
A1: ОТЧЕТ О ФИНАНСОВЫХ РЕЗУЛЬТАТАХ ДЕЯТЕЛЬНОСТИ УЧРЕЖДЕНИЯ | N1: КОДЫ
M2: Форма по ОКУД | N2: 0503721
D3: на 01 января 2016 г. | M3: Дата | N3: 01.01.2016
A4: Учреждение | D4: УФК по Саратовской области (Фин. управление администрации Ртищевского муницип. района МОУ "Лицей №3 им. П.А. Столыпина г.Ртищево Саратовской области") | M4: по ОКПО | N4: 36172359
A5: Обособленное подразделение
A6: Учредитель | M6: по ОКТМО | N6: 63440000000
A7: Наименование органа, осуществля- | M7: по ОКПО
A8: ющего полномочия учредителя | M8: ИНН
A9: Периодичность: годовая | M9: Глава по БК
A10: Единица измерения: руб | M10: по ОКЕИ | N10: 383
I12: Код | J12: Код анали-тики | K12: Деятельность | L12: Деятельность по | M12: Приносящая
A13: Наименование показателя | I13: стро- | K13: с целевыми | L13: государственному | M13: доход | N13: Итого
I14: ки | K14: средствами | L14: заданию | M14: деятельность
A15: 1 | I15: 2 | J15: 3 | K15: 4 | L15: 5 | M15: 6 | N15: 7
A16: Доходы (стр.030 + стр.040 + стр.050 + стр.060 + стр.090 + стр.100 + стр.110) | I16: 010 | J16: 100 | K16: =K17+K18+K19+K20+K25+K33+K39 -> 578747.06 | L16: =L17+L18+L19+L20+L25+L33+L39 -> 23534272.7 | M16: =M17+M18+M19+M20+M25+M33+M39 -> 1531689.81 | N16: =K16+L16+M16 -> 25644709.57
A17: Доходы от собственности | I17: 030 | J17: 120 | L17: 0 | M17: 0 | N17: =K17+L17+M17 -> 0
A18: Доходы от оказания платных услуг (работ) | I18: 040 | J18: 130 | M18: 1531689.81 | N18: =K18+L18+M18 -> 1531689.81
A19: Доходы от штрафов, пени, иных сумм принудительного изъятия | I19: 050 | J19: 140 | M19: 0 | N19: =K19+L19+M19 -> 0
A20: Безвозмездные поступления от бюджетов | I20: 060 | J20: 150 | K20: =K23+K24 -> 0 | L20: =L23+L24 -> 0 | M20: =M23+M24 -> 0 | N20: =K20+L20+M20 -> 0
A21: в том числе:
A22: поступления от наднациональных организаций и правительств
A23: иностранных государств | I23: 062 | J23: 152 | L23: 0 | N23: =K23+L23+M23 -> 0
A24: поступления от международных финансовых организаций | I24: 063 | J24: 153 | L24: 0 | N24: =K24+L24+M24 -> 0
A25: Доходы от операций с активами | I25: 090 | J25: 170 | K25: =K27+K28+K32 -> 0 | L25: =L27+L28+L32 -> -328565.4 | M25: =M27+M28+M32 -> 0 | N25: =K25+L25+M25 -> -328565.4
A26: в том числе:
A27: доходы от переоценки активов | I27: 091 | J27: 171 | K27: 0 | L27: 0 | M27: 0 | N27: =K27+L27+M27 -> 0
A28: доходы от реализации активов | I28: 092 | J28: 172 | K28: =K30+K31 -> 0 | L28: =L30+L31 -> -328565.4 | M28: =M30+M31 -> 0 | N28: =K28+L28+M28 -> -328565.4
A29: из них:
A30: доходы от реализации нефинансовых активов | I30: 093 | J30: 172 | K30: 0 | L30: -328565.4 | M30: 0 | N30: =K30+L30+M30 -> -328565.4
A31: доходы от реализации финансовых активов | I31: 096 | J31: 172 | L31: 0 | N31: =K31+L31+M31 -> 0
A32: чрезвычайные доходы от операций с активами | I32: 099 | J32: 173 | K32: 0 | L32: 0 | M32: 0 | N32: =K32+L32+M32 -> 0
A33: Прочие доходы | I33: 100 | J33: 180 | K33: =K35+K36+K37+K38 -> 578747.06 | L33: =L35+L36+L37+L38 -> 23862838.1 | M33: =M35+M36+M37+M38 -> 0 | N33: =K33+L33+M33 -> 24441585.16
A34: в том числе:
A35: субсидии | I35: 101 | J35: 180 | K35: 578747.06 | L35: 23862838.1 | N35: =K35+L35+M35 -> 24441585.16
A36: субсидии на осуществление капитальных вложений | I36: 102 | J36: 180 | K36: 0 | N36: =K36+L36+M36 -> 0
A37: иные трансферты | I37: 103 | J37: 180 | K37: 0 | M37: 0 | N37: =K37+L37+M37 -> 0
A38: иные прочие доходы | I38: 104 | J38: 180 | L38: 0 | M38: 0 | N38: =K38+L38+M38 -> 0
A39: Доходы будущих периодов | I39: 110 | J39: 100 | K39: 0 | L39: 0 | M39: 0 | N39: =K39+L39+M39 -> 0
N40: Форма 0503721 с.2
I41: Код | J41: Код анали-тики | K41: Деятельность | L41: Деятельность по | M41: Приносящая
A42: Наименование показателя | I42: стро- | K42: с целевыми | L42: государственному | M42: доход | N42: Итого
I43: ки | K43: средствами | L43: заданию | M43: деятельность
A44: 1 | I44: 2 | J44: 3 | K44: 4 | L44: 5 | M44: 6 | N44: 7
A45: Расходы (стр.160 + стр.170 + стр. 190 + стр.210 + стр. 230 + стр. 240 + стр. 250 + стр. 260 + стр. 290) | I45: 150 | J45: 200 | K45: =K46+K51+K59+K63+K69+K74+K79+K85+K90 -> 580265.13 | L45: =L46+L51+L59+L63+L69+L74+L79+L85+L90 -> 26980709.27 | M45: =M46+M51+M59+M63+M69+M74+M79+M85+M90 -> 1524742.76 | N45: =K45+L45+M45 -> 29085717.16
A46: Оплата труда и начисления на выплаты по оплате труда | I46: 160 | J46: 210 | K46: =K48+K49+K50 -> 0 | L46: =L48+L49+L50 -> 19922264.24 | M46: =M48+M49+M50 -> 16537.32 | N46: =K46+L46+M46 -> 19938801.56
A47: в том числе:
A48: заработная плата | I48: 161 | J48: 211 | K48: 0 | L48: 15104883.6 | M48: 12990.83 | N48: =K48+L48+M48 -> 15117874.43
A49: прочие выплаты | I49: 162 | J49: 212 | K49: 0 | L49: 2475.81 | M49: 0 | N49: =K49+L49+M49 -> 2475.81
A50: начисления на выплаты по оплате труда | I50: 163 | J50: 213 | K50: 0 | L50: 4814904.83 | M50: 3546.49 | N50: =K50+L50+M50 -> 4818451.32
A51: Приобретение работ, услуг | I51: 170 | J51: 220 | K51: =K53+K54+K55+K56+K57+K58 -> 99897 | L51: =L53+L54+L55+L56+L57+L58 -> 3534200.33 | M51: =M53+M54+M55+M56+M57+M58 -> 38438.48 | N51: =K51+L51+M51 -> 3672535.81
A52: в том числе:
A53: услуги связи | I53: 171 | J53: 221 | K53: 0 | L53: 34156.69 | M53: 0 | N53: =K53+L53+M53 -> 34156.69
A54: транспортные услуги | I54: 172 | J54: 222 | K54: 0 | L54: 4463.1 | M54: 0 | N54: 4463.1
A55: коммунальные услуги | I55: 173 | J55: 223 | K55: 0 | L55: 2965698.59 | M55: 0 | N55: 2965698.59
A56: арендная плата за пользование имуществом | I56: 174 | J56: 224 | K56: 0 | L56: 0 | M56: 0 | N56: 0
A57: работы, услуги по содержанию имущества | I57: 175 | J57: 225 | K57: 99897 | L57: 114832.52 | M57: 0 | N57: 214729.52
A58: прочие работы, услуги | I58: 176 | J58: 226 | K58: 0 | L58: 415049.43 | M58: 38438.48 | N58: 453487.91
A59: Обслуживание долговых обязательств | I59: 190 | J59: 230 | K59: =K61+K62 -> 0 | L59: =L61+L62 -> 0 | M59: =M61+M62 -> 0 | N59: 0
A60: в том числе:
A61: обслуживание долговых обязательств перед резидентами | I61: 191 | J61: 231 | L61: 0 | M61: 0 | N61: =K61+L61+M61 -> 0
A62: обслуживание долговых обязательств перед нерезидентами | I62: 192 | J62: 232 | L62: 0 | M62: 0 | N62: =K62+L62+M62 -> 0
A63: Безвозмездные перечисления организациям | I63: 210 | J63: 240 | K63: =K66+K68 -> 0 | L63: =L66+L68 -> 0 | M63: =M66+M68 -> 0 | N63: =K63+L63+M63 -> 0
A64: в том числе:
A65: безвозмездные перечисления государственным
A66: и муниципальным организациям | I66: 211 | J66: 241 | K66: 0 | L66: 0 | M66: 0 | N66: =K66+L66+M66 -> 0
A67: безвозмездные перечисления организациям, за
A68: исключением государственных и муниципальных организаций | I68: 212 | J68: 242 | K68: 0 | L68: 0 | M68: 0 | N68: =K68+L68+M68 -> 0
A69: Безвозмездные перечисления бюджетам | I69: 230 | J69: 250 | K69: =K72+K73 -> 0 | L69: =L72+L73 -> 0 | M69: =M72+M73 -> 0 | N69: =K69+L69+M69 -> 0
A70: в том числе:
A71: перечисления наднациональным организациям и правительствам
A72: иностранных государств | I72: 232 | J72: 252 | K72: 0 | L72: 0 | M72: 0 | N72: =K72+L72+M72 -> 0
A73: перечисления международным организациям | I73: 233 | J73: 253 | K73: 0 | L73: 0 | M73: 0 | N73: =K73+L73+M73 -> 0
A74: Социальное обеспечение | I74: 240 | J74: 260 | K74: =K76+K78 -> 0 | L74: =L76+L78 -> 0 | M74: =M76+M78 -> 0 | N74: =K74+L74+M74 -> 0
A75: в том числе:
A76: пособия по социальной помощи населению | I76: 242 | J76: 262 | K76: 0 | L76: 0 | M76: 0 | N76: =K76+L76+M76 -> 0
A77: пенсии, пособия, выплачиваемые организациями сектора
A78: государственного управления | I78: 243 | J78: 263 | K78: 0 | L78: 0 | M78: 0 | N78: =K78+L78+M78 -> 0
A79: Прочие расходы | I79: 250 | J79: 290 | K79: 0 | L79: 881105.75 | M79: 0 | N79: =K79+L79+M79 -> 881105.75
N80: Форма 0503721 с.3
I81: Код | J81: Код анали-тики | K81: Деятельность | L81: Деятельность по | M81: Приносящая
A82: Наименование показателя | I82: стро- | K82: с целевыми | L82: государственному | M82: доход | N82: Итого
I83: ки | K83: средствами | L83: заданию | M83: деятельность
A84: 1 | I84: 2 | J84: 3 | K84: 4 | L84: 5 | M84: 6 | N84: 7
A85: Расходы по операциям с активами | I85: 260 | J85: 270 | K85: =K87+K88+K89 -> 480368.13 | L85: =L87+L88+L89 -> 2643138.95 | M85: =M87+M88+M89 -> 1469766.96 | N85: =K85+L85+M85 -> 4593274.04
A86: в том числе:
A87: амортизация основных средств и нематериальных активов | I87: 261 | J87: 271 | K87: 0 | L87: 2643138.95 | M87: 13300 | N87: =K87+L87+M87 -> 2656438.95
A88: расходование материальных запасов | I88: 264 | J88: 272 | K88: 480368.13 | L88: 0 | M88: 1456466.96 | N88: 1936835.09
A89: чрезвычайные расходы по операциям с активами | I89: 269 | J89: 273 | K89: 0 | L89: 0 | M89: 0 | N89: 0
A90: Расходы будущих периодов | I90: 290 | K90: 0 | L90: 0 | M90: 0 | N90: 0
A91: Чистый операционный результат (стр.301 - стр.302 + стр.303); (стр.310 + стр.380) | I91: 300 | K91: =K92-K93+K94 -> -1518.07 | L91: =L92-L93+L94 -> -3446436.57 | M91: =M92-M93+M94 -> -1225.95 | N91: -3449180.59 | P91: =K91-P92 -> 0 | Q91: =L91-Q92 -> 0 | R91: =M91-R92 -> 0
A92: Операционный результат до налогообложения (стр.010 - стр.150) | I92: 301 | K92: =K16-K45 -> -1518.07 | L92: =L16-L45 -> -3446436.57 | M92: =M16-M45 -> 6947.05 | N92: -3441007.59 | P92: =K95+K122-K152 -> -1518.07 | Q92: =L95+L122-L152 -> -3446436.57 | R92: =M95+M122-M152 -> -1225.95
A93: Налог на прибыль | I93: 302 | L93: 0 | M93: 8173 | N93: 8173
A94: Резервы предстоящих расходов | I94: 303 | K94: 0 | L94: 0 | M94: 0 | N94: 0
A95: Операции с нефинансовыми активами (стр.320 + стр.330 + стр.350 + стр.360 + стр.370) | I95: 310 | K95: =K96+K100+K104+K108+K112 -> 3913 | L95: =L96+L100+L104+L108+L112 -> -2284538.95 | M95: =M96+M100+M104+M108+M112 -> 7177.25 | N95: -2273448.7
A96: Чистое поступление основных средств | I96: 320 | K96: =K98-K99 -> 0 | L96: =L98-L99 -> -2284538.95 | M96: =M98-M99 -> 0 | N96: -2284538.95
A97: в том числе:
A98: увеличение стоимости основных средств | I98: 321 | J98: 310 | K98: 0 | L98: 364550 | M98: 31500 | N98: =K98+L98+M98 -> 396050
A99: уменьшение стоимости основных средств | I99: 322 | J99: 410 | K99: 0 | L99: 2649088.95 | M99: 31500 | N99: =K99+L99+M99 -> 2680588.95
A100: Чистое поступление нематериальных активов | I100: 330 | K100: =K102-K103 -> 0 | L100: =L102-L103 -> 0 | M100: =M102-M103 -> 0 | N100: =K100+L100+M100 -> 0
A101: в том числе:
A102: увеличение стоимости нематериальных активов | I102: 331 | J102: 320 | K102: 0 | L102: 0 | M102: 0 | N102: =K102+L102+M102 -> 0
A103: уменьшение стоимости нематериальных активов | I103: 332 | J103: 420 | K103: 0 | L103: 0 | M103: 0 | N103: =K103+L103+M103 -> 0
A104: Чистое поступление непроизведенных активов | I104: 350 | K104: =K106-K107 -> 0 | L104: =L106-L107 -> 0 | M104: =M106-M107 -> 0 | N104: =K104+L104+M104 -> 0
A105: в том числе:
A106: увеличение стоимости непроизведенных активов | I106: 351 | J106: 330 | K106: 0 | L106: 0 | M106: 0 | N106: =K106+L106+M106 -> 0
A107: уменьшение стоимости непроизведенных активов | I107: 352 | J107: 430 | K107: 0 | L107: 0 | M107: 0 | N107: =K107+L107+M107 -> 0
A108: Чистое поступление материальных запасов | I108: 360 | K108: =K110-K111 -> 3913 | L108: =L110-L111 -> 0 | M108: =M110-M111 -> 7177.25 | N108: =K108+L108+M108 -> 11090.25
A109: в том числе:
A110: увеличение стоимости материальных запасов | I110: 361 | J110: 340 | K110: 484281.15 | L110: 0 | M110: 1463759.28 | N110: =K110+L110+M110 -> 1948040.43
A111: уменьшение стоимости материальных запасов | I111: 362 | J111: 440 | K111: 480368.15 | L111: 0 | M111: 1456582.03 | N111: =K111+L111+M111 -> 1936950.18
A112: Чистое изменение затрат на изготовление готовой продукции (работ, услуг) | I112: 370 | K112: =K114-K115 -> 0 | L112: =L114-L115 -> 0 | M112: =M114-M115 -> 0 | N112: =K112+L112+M112 -> 0
A113: в том числе:
A114: увеличение затрат | I114: 371 | J114: х | K114: 0 | L114: 0 | M114: 1540608.48 | N114: =K114+L114+M114 -> 1540608.48
A115: уменьшение затрат | I115: 372 | J115: х | K115: 0 | L115: 0 | M115: 1540608.48 | N115: =K115+L115+M115 -> 1540608.48
N116: Форма 0503721 с.4
I117: Код | J117: Код анали-тики | K117: Деятельность | L117: Деятельность по | M117: Приносящая
A118: Наименование показателя | I118: стро- | K118: с целевыми | L118: государственному | M118: доход | N118: Итого
I119: ки | K119: средствами | L119: заданию | M119: деятельность
A120: 1 | I120: 2 | J120: 3 | K120: 4 | L120: 5 | M120: 6 | N120: 7
A121: Операции с финансовыми активами и обязательствами (стр.390 - стр.510) | I121: 380 | K121: =K122-K152 -> -5431.07 | L121: =L122-L152 -> -1161897.62 | M121: =M122-M152 -> -8403.2 | N121: =K121+L121+M121 -> -1175731.89
A122: Операции с финансовыми активами (стр.410 + стр.420 + стр.440 +стр.460 + стр.470 + стр.480) | I122: 390 | K122: =K123+K127+K131+K135+K139+K143 -> 0 | L122: =L123+L127+L131+L135+L139+L143 -> -314472.73 | M122: =M123+M127+M131+M135+M139+M143 -> 77799.16 | N122: =K122+L122+M122 -> -236673.57
A123: Чистое поступление средств учреждений | I123: 410 | K123: =K125-K126 -> 0 | L123: =L125-L126 -> 0 | M123: =M125-M126 -> 68001.35 | N123: =K123+L123+M123 -> 68001.35
A124: в том числе:
A125: поступление средств | I125: 411 | J125: 510 | K125: 578747.06 | L125: 23989642.71 | M125: 1578362.2 | N125: =K125+L125+M125 -> 26146751.97
A126: выбытие средств | I126: 412 | J126: 610 | K126: 578747.06 | L126: 23989642.71 | M126: 1510360.85 | N126: =K126+L126+M126 -> 26078750.62
A127: Чистое поступление ценных бумаг, кроме акций | I127: 420 | K127: =K129-K130 -> 0 | L127: =L129-L130 -> 0 | M127: =M129-M130 -> 0 | N127: =K127+L127+M127 -> 0
A128: в том числе:
A129: увеличение стоимости ценных бумаг, кроме акций | I129: 421 | J129: 520 | K129: 0 | L129: 0 | M129: 0 | N129: =K129+L129+M129 -> 0
A130: уменьшение стоимости ценных бумаг, кроме акций | I130: 422 | J130: 620 | K130: 0 | L130: 0 | M130: 0 | N130: =K130+L130+M130 -> 0
A131: Чистое поступление акций и иных форм участия в капитале | I131: 440 | K131: =K133-K134 -> 0 | L131: =L133-L134 -> 0 | M131: =M133-M134 -> 0 | N131: =K131+L131+M131 -> 0
A132: в том числе:
A133: увеличение стоимости акций и иных форм участия в капитале | I133: 441 | J133: 530 | K133: 0 | L133: 0 | M133: 0 | N133: =K133+L133+M133 -> 0
A134: уменьшение стоимости акций и иных форм участия в капитале | I134: 442 | J134: 630 | K134: 0 | L134: 0 | M134: 0 | N134: =K134+L134+M134 -> 0
A135: Чистое предоставление займов (ссуд) | I135: 460 | K135: =K137-K138 -> 0 | L135: =L137-L138 -> 0 | M135: =M137-M138 -> 0 | N135: =K135+L135+M135 -> 0
A136: в том числе:
A137: увеличение задолженности по предоставленным займам (ссудам) | I137: 461 | J137: 540 | K137: 0 | L137: 0 | M137: 0 | N137: =K137+L137+M137 -> 0
A138: уменьшение задолженности по предоставленным займам (ссудам) | I138: 462 | J138: 640 | K138: 0 | L138: 0 | M138: 0 | N138: =K138+L138+M138 -> 0
A139: Чистое поступление иных финансовых активов | I139: 470 | K139: =K141-K142 -> 0 | L139: =L141-L142 -> 0 | M139: =M141-M142 -> 0 | N139: =K139+L139+M139 -> 0
A140: в том числе:
A141: увеличение стоимости иных финансовых активов | I141: 471 | J141: 550 | K141: 0 | L141: 0 | M141: 0 | N141: =K141+L141+M141 -> 0
A142: уменьшение стоимости иных финансовых активов | I142: 472 | J142: 650 | K142: 0 | L142: 0 | M142: 0 | N142: =K142+L142+M142 -> 0
A143: Чистое увеличение дебиторской задолженности | I143: 480 | K143: =K145-K146 -> 0 | L143: =L145-L146 -> -314472.73 | M143: =M145-M146 -> 9797.81 | N143: =K143+L143+M143 -> -304674.92
A144: в том числе:
A145: увеличение дебиторской задолженности | I145: 481 | J145: 560 | K145: 578747.06 | L145: 23887538.87 | M145: 1531689.81 | N145: =K145+L145+M145 -> 25997975.74
A146: уменьшение дебиторской задолженности | I146: 482 | J146: 660 | K146: 578747.06 | L146: 24202011.6 | M146: 1521892 | N146: =K146+L146+M146 -> 26302650.66
N147: Форма 0503721 с.5
I148: Код | J148: Код анали-тики | K148: Деятельность | L148: Деятельность по | M148: Приносящая
A149: Наименование показателя | I149: стро- | K149: с целевыми | L149: государственному | M149: доход | N149: Итого
I150: ки | K150: средствами | L150: заданию | M150: деятельность
A151: 1 | I151: 2 | J151: 3 | K151: 4 | L151: 5 | M151: 6 | N151: 7
A152: Операции с обязательствами (стр.520 + стр.530 + стр.540) | I152: 510 | K152: =K153+K157+K161 -> 5431.07 | L152: =L153+L157+L161 -> 847424.89 | M152: =M153+M157+M161 -> 86202.36 | N152: =K152+L152+M152 -> 939058.32
A153: Чистое увеличение задолженности по привлечениям перед резидентами | I153: 520 | K153: =K155-K156 -> 0 | L153: =L155-L156 -> 0 | M153: =M155-M156 -> 0 | N153: =K153+L153+M153 -> 0
A154: в том числе:
A155: увеличение задолженности по привлечениям перед резидентами | I155: 521 | J155: 710 | L155: 0 | M155: 0 | N155: =K155+L155+M155 -> 0
A156: уменьшение задолженности по привлечениям перед резидентами | I156: 522 | J156: 810 | L156: 0 | M156: 0 | N156: =K156+L156+M156 -> 0
A157: Чистое увеличение задолженности по привлечениям перед нерезидентами | I157: 530 | K157: =K159-K160 -> 0 | L157: =L159-L160 -> 0 | M157: =M159-M160 -> 0 | N157: =K157+L157+M157 -> 0
A158: в том числе:
A159: увеличение задолженности по привлечениям перед нерезедентами | I159: 531 | J159: 720 | L159: 0 | M159: 0 | N159: =K159+L159+M159 -> 0
A160: уменьшение задолженности по привлечениям перед нерезидентами | I160: 532 | J160: 820 | L160: 0 | M160: 0 | N160: =K160+L160+M160 -> 0
A161: Чистое увеличение прочей кредиторской задолженности | I161: 540 | K161: =K163-K164 -> 5431.07 | L161: =L163-L164 -> 847424.89 | M161: =M163-M164 -> 86202.36 | N161: =K161+L161+M161 -> 939058.32
A162: в том числе:
A163: увеличение прочей кредиторской задолженности | I163: 541 | J163: 730 | K163: 584178.13 | L163: 41636557.08 | M163: 1609554.04 | N163: =K163+L163+M163 -> 43830289.25
A164: уменьшение прочей кредиторской задолженности | I164: 542 | J164: 830 | K164: 578747.06 | L164: 40789132.19 | M164: 1523351.68 | N164: =K164+L164+M164 -> 42891230.93
A166: Руководитель | F166: Рудаева С.В. | J166: Руководитель финансово- ____________________ ___________________________
C167: (подпись) | F167: (расшифровка подписи) | J167: экономической службы (подпись) (расшифровка подписи)
A169: Главный бухгалтер | F169: Окружко Н.Г.
C170: (подпись) | F170: (расшифровка подписи)
H171: Централизованная
H172: бухгалтерия | K172: (наименование, ОГРН, ИНН, КПП, местонахождение)
F174: Руководитель
F175: (уполномоченное лицо) | H175: (должность) | K175: (подпись) | M175: (расшифровка подписи)
A177: Исполнитель ____________________ __________________
A178: (должность) (подпись) | G178: (расшифровка подписи) | J178: (телефон, e-mail)
A180: " _______ " ______________________ 20____ г.

Sheet Настройка
B1: This.Print0s = .T. | C1: Header | IU1: :бR^ћфИЈЫ ЉК±
B2: __p_Date = Iif(Empty(m.dReoDate), m.dDateEnd + 1, m.dReoDate) | C2: Header
B3: __p_OrgRn = Iif(m.cOrg # "|" And Len(m.cOrg) == 4, m.cOrg, oSystem.OwnerOrgRn) | C3: Header
A4: ДатаОтчета | B4: "на " + DToCLong(__p_Date) | C4: Header
A5: Дата | B5: DToC2000(__p_Date) | C5: Header
A6: ОРГАНИЗАЦИЯ | B6: This.__getOrgName(__p_OrgRn) | C6: Header
A7: ОКПО | B7: AllTrim(This.Seek_TableFields("Org", "RN", "Org.OKPO", __p_OrgRn)) | C7: Header
A8: Учредитель | B8: This.__getOrgName(m.cRN_Found) | C8: Header
A9: ОКАТО | B9: AllTrim(This.Seek_TableFields("OrgBase", "RN", "OrgBase.OKATO", __p_OrgRn)) | C9: Header
A10: ОКПО2 | B10: AllTrim(This.Seek_TableFields("Org", "RN", "Org.OKPO", m.cRN_Found)) | C10: Header
B11: __p_INN = AllTrim(This.Seek_TableFields("OrgBase", "RN", "OrgBase.INN", m.cRN_Found)) | C11: Header
B12: __p_pos = AT("/", __p_INN) | C12: Header
A13: ИНН | B13: AllTrim(Iif(__p_pos = 0, __p_INN, Left(__p_INN, __p_pos - 1))) | C13: Header
A14: ГлаваБК | B14: AllTrim(m.glBK) | C14: Header
A15: Col5Row030 | B15: nCol5Row030 | C15: Header
A16: Col6Row030 | B16: nCol6Row030 | C16: Header
A17: Col6Row040 | B17: nCol6Row040 | C17: Header
A18: Col6Row050 | B18: nCol6Row050 | C18: Header
A19: Col5Row062 | B19: nCol5Row062 | C19: Header
A20: Col5Row063 | B20: nCol5Row063 | C20: Header
A21: Col5Row091 | B21: nCol5Row091 | C21: Header
A22: Col4Row091 | B22: nCol4Row091 | C22: Header
A23: Col6Row091 | B23: nCol6Row091 | C23: Header
A24: Col4Row093 | B24: nCol4Row093 | C24: Header
A25: Col5Row093 | B25: nCol5Row093 | C25: Header
A26: Col6Row093 | B26: nCol6Row093 | C26: Header
A27: Col5Row096 | B27: nCol5Row096 | C27: Header
A28: Col4Row099 | B28: nCol4Row099 | C28: Header
A29: Col5Row099 | B29: nCol5Row099 | C29: Header
A30: Col6Row099 | B30: nCol6Row099 | C30: Header
A31: Col5Row101 | B31: nCol5Row101 | C31: Header
A32: Col4Row101 | B32: nCol4Row101 | C32: Header
A33: Col4Row102 | B33: nCol4Row102 | C33: Header
A34: Col4Row103 | B34: nCol4Row103 | C34: Header
A35: Col6Row103 | B35: nCol6Row103 | C35: Header
A36: Col5Row104 | B36: nCol5Row104 | C36: Header
A37: Col6Row104 | B37: nCol6Row104 | C37: Header
A38: Col4Row110 | B38: nCol4Row110 | C38: Header
A39: Col5Row110 | B39: nCol5Row110 | C39: Header
A40: Col6Row110 | B40: nCol6Row110 | C40: Header
A41: Col4Row161 | B41: nCol4Row161 | C41: Header
A42: Col4Row162 | B42: nCol4Row162 | C42: Header
A43: Col4Row163 | B43: nCol4Row163 | C43: Header
A44: Col4Row171 | B44: nCol4Row171 | C44: Header
A45: Col4Row172 | B45: nCol4Row172 | C45: Header
A46: Col4Row173 | B46: nCol4Row173 | C46: Header
A47: Col4Row174 | B47: nCol4Row174 | C47: Header
A48: Col4Row175 | B48: nCol4Row175 | C48: Header
A49: Col4Row176 | B49: nCol4Row176 | C49: Header
A50: Col4Row211 | B50: nCol4Row211 | C50: Header
A51: Col6Row211 | B51: nCol6Row211 | C51: Header
A52: Col4Row212 | B52: nCol4Row212 | C52: Header
A53: Col4Row232 | B53: nCol4Row232 | C53: Header
A54: Col4Row233 | B54: nCol4Row233 | C54: Header
A55: Col4Row242 | B55: nCol4Row242 | C55: Header
A56: Col4Row243 | B56: nCol4Row243 | C56: Header
A57: Col4Row250 | B57: nCol4Row250 | C57: Header
A58: Col5Row161 | B58: nCol5Row161 | C58: Header
A59: Col6Row161 | B59: nCol6Row161 | C59: Header
A60: Col5Row162 | B60: nCol5Row162 | C60: Header
A61: Col6Row162 | B61: nCol6Row162 | C61: Header
A62: Col5Row163 | B62: nCol5Row163 | C62: Header
A63: Col6Row163 | B63: nCol6Row163 | C63: Header
A64: Col5Row171 | B64: nCol5Row171 | C64: Header
A65: Col6Row171 | B65: nCol6Row171 | C65: Header
A66: Col5Row172 | B66: nCol5Row172 | C66: Header
A67: Col5Row173 | B67: nCol5Row173 | C67: Header
A68: Col6Row172 | B68: nCol6Row172 | C68: Header
A69: Col6Row173 | B69: nCol6Row173 | C69: Header
A70: Col5Row174 | B70: nCol5Row174 | C70: Header
A71: Col6Row174 | B71: nCol6Row174 | C71: Header
A72: Col5Row175 | B72: nCol5Row175 | C72: Header
A73: Col5Row176 | B73: nCol5Row176 | C73: Header
A74: Col6Row175 | B74: nCol6Row175 | C74: Header
A75: Col6Row176 | B75: nCol6Row176 | C75: Header
A76: Col5Row211 | B76: nCol5Row211 | C76: Header
A77: Col5Row212 | B77: nCol5Row212 | C77: Header
A78: Col6Row211 | B78: nCol6Row211 | C78: Header
A79: Col6Row212 | B79: nCol6Row212 | C79: Header
A80: Col5Row232 | B80: nCol5Row232 | C80: Header
A81: Col5Row233 | B81: nCol5Row233 | C81: Header
A82: Col6Row232 | B82: nCol6Row232 | C82: Header
A83: Col6Row233 | B83: nCol6Row233 | C83: Header
A84: Col5Row242 | B84: nCol5Row242 | C84: Header
A85: Col6Row242 | B85: nCol6Row242 | C85: Header
A86: Col5Row243 | B86: nCol5Row243 | C86: Header
A87: Col6Row243 | B87: nCol6Row243 | C87: Header
A88: Col5Row250 | B88: nCol5Row250 | C88: Header
A89: Col6Row250 | B89: nCol6Row250 | C89: Header
A90: Col5Row191 | B90: nCol5Row191 | C90: Header
A91: Col6Row191 | B91: nCol6Row191 | C91: Header
A92: Col5Row192 | B92: nCol5Row192 | C92: Header
A93: Col6Row192 | B93: nCol6Row192 | C93: Header
A94: Col5Row261 | B94: nCol5Row261 | C94: Header
A95: Col5Row264 | B95: nCol5Row264 | C95: Header
A96: Col5Row269 | B96: nCol5Row269 | C96: Header
A97: Col6Row261 | B97: nCol6Row261 | C97: Header
A98: Col6Row264 | B98: nCol6Row264 | C98: Header
A99: Col6Row269 | B99: nCol6Row269 | C99: Header
A100: Col5Row290 | B100: nCol5Row290 | C100: Header
A101: Col6Row290 | B101: nCol6Row290 | C101: Header
A102: Col5Row302 | B102: nCol5Row302 | C102: Header
A103: Col6Row302 | B103: nCol6Row302 | C103: Header
A104: Col4Row303 | B104: nCol4Row303 | C104: Header
A105: Col5Row303 | B105: nCol5Row303 | C105: Header
A106: Col6Row303 | B106: nCol6Row303 | C106: Header
A107: Col5Row321 | B107: nCol5Row321 | C107: Header
A108: Col5Row322 | B108: nCol5Row322 | C108: Header
A109: Col5Row331 | B109: nCol5Row331 | C109: Header
A110: Col5Row332 | B110: nCol5Row332 | C110: Header
A111: Col5Row351 | B111: nCol5Row351 | C111: Header
A112: Col5Row352 | B112: nCol5Row352 | C112: Header
A113: Col5Row361 | B113: nCol5Row361 | C113: Header
A114: Col5Row362 | B114: nCol5Row362 | C114: Header
A115: Col5Row371 | B115: nCol5Row371 | C115: Header
A116: Col5Row372 | B116: nCol5Row372 | C116: Header
A117: Col4Row261 | B117: nCol4Row261 | C117: Header
A118: Col4Row264 | B118: nCol4Row264 | C118: Header
A119: Col4Row269 | B119: nCol4Row269 | C119: Header
A120: Col4Row290 | B120: nCol4Row290 | C120: Header
A121: Col4Row321 | B121: nCol4Row321 | C121: Header
A122: Col4Row322 | B122: nCol4Row322 | C122: Header
A123: Col4Row331 | B123: nCol4Row331 | C123: Header
A124: Col4Row332 | B124: nCol4Row332 | C124: Header
A125: Col4Row351 | B125: nCol4Row351 | C125: Header
A126: Col4Row352 | B126: nCol4Row352 | C126: Header
A127: Col4Row361 | B127: nCol4Row361 | C127: Header
A128: Col4Row362 | B128: nCol4Row362 | C128: Header
A129: Col4Row371 | B129: nCol4Row371 | C129: Header
A130: Col4Row372 | B130: nCol4Row372 | C130: Header
A131: Col6Row321 | B131: nCol6Row321 | C131: Header
A132: Col6Row322 | B132: nCol6Row322 | C132: Header
A133: Col6Row331 | B133: nCol6Row331 | C133: Header
A134: Col6Row332 | B134: nCol6Row332 | C134: Header
A135: Col6Row351 | B135: nCol6Row351 | C135: Header
A136: Col6Row352 | B136: nCol6Row352 | C136: Header
A137: Col6Row361 | B137: nCol6Row361 | C137: Header
A138: Col6Row362 | B138: nCol6Row362 | C138: Header
A139: Col6Row371 | B139: nCol6Row371 | C139: Header
A140: Col6Row372 | B140: nCol6Row372 | C140: Header
A141: Col4Row411 | B141: nCol4Row411 | C141: Header
A142: Col4Row412 | B142: nCol4Row412 | C142: Header
A143: Col4Row421 | B143: nCol4Row421 | C143: Header
A144: Col4Row422 | B144: nCol4Row422 | C144: Header
A145: Col4Row441 | B145: nCol4Row441 | C145: Header
A146: Col4Row442 | B146: nCol4Row442 | C146: Header
A147: Col4Row461 | B147: nCol4Row461 | C147: Header
A148: Col4Row462 | B148: nCol4Row462 | C148: Header
A149: Col4Row471 | B149: nCol4Row471 | C149: Header
A150: Col4Row472 | B150: nCol4Row472 | C150: Header
A151: Col4Row481 | B151: nCol4Row481 | C151: Header
A152: Col4Row482 | B152: nCol4Row482 | C152: Header
A153: Col5Row411 | B153: nCol5Row411 | C153: Header
A154: Col5Row412 | B154: nCol5Row412 | C154: Header
A155: Col5Row421 | B155: nCol5Row421 | C155: Header
A156: Col5Row422 | B156: nCol5Row422 | C156: Header
A157: Col5Row441 | B157: nCol5Row441 | C157: Header
A158: Col5Row442 | B158: nCol5Row442 | C158: Header
A159: Col5Row461 | B159: nCol5Row461 | C159: Header
A160: Col5Row462 | B160: nCol5Row462 | C160: Header
A161: Col5Row471 | B161: nCol5Row471 | C161: Header
A162: Col5Row472 | B162: nCol5Row472 | C162: Header
A163: Col5Row481 | B163: nCol5Row481 | C163: Header
A164: Col5Row482 | B164: nCol5Row482 | C164: Header
A165: Col6Row411 | B165: nCol6Row411 | C165: Header
A166: Col6Row412 | B166: nCol6Row412 | C166: Header
A167: Col6Row421 | B167: nCol6Row421 | C167: Header
A168: Col6Row422 | B168: nCol6Row422 | C168: Header
A169: Col6Row441 | B169: nCol6Row441 | C169: Header
A170: Col6Row442 | B170: nCol6Row442 | C170: Header
A171: Col6Row461 | B171: nCol6Row461 | C171: Header
A172: Col6Row462 | B172: nCol6Row462 | C172: Header
A173: Col6Row471 | B173: nCol6Row471 | C173: Header
A174: Col6Row472 | B174: nCol6Row472 | C174: Header
A175: Col6Row481 | B175: nCol6Row481 | C175: Header
A176: Col6Row482 | B176: nCol6Row482 | C176: Header
A177: Col5Row521 | B177: nCol5Row521 | C177: Header
A178: Col6Row521 | B178: nCol6Row521 | C178: Header
A179: Col5Row522 | B179: nCol5Row522 | C179: Header
A180: Col6Row522 | B180: nCol6Row522 | C180: Header
A181: Col5Row531 | B181: nCol5Row531 | C181: Header
A182: Col5Row532 | B182: nCol5Row532 | C182: Header
A183: Col6Row531 | B183: nCol6Row531 | C183: Header
A184: Col6Row532 | B184: nCol6Row532 | C184: Header
A185: Col5Row541 | B185: nCol5Row541 | C185: Header
A186: Col5Row542 | B186: nCol5Row542 | C186: Header
A187: Col4Row541 | B187: nCol4Row541 | C187: Header
A188: Col4Row542 | B188: nCol4Row542 | C188: Header
A189: Col6Row541 | B189: nCol6Row541 | C189: Header
A190: Col6Row542 | B190: nCol6Row542 | C190: Header
A191: Руководитель | B191: This.__GetOrgBoss(__p_OrgRn, 2) | C191: Header
A192: ГлБух | B192: This.__GetOrgAcc(__p_OrgRn, 2) | C192: Header
A193: Исполнитель | B193: AllTrim(m.cIspName) | C193: Header
A194: Телефон | B194: AllTrim(m.cIspTel) | C194: Header
A195: txt_fileName | B195: m.cFileName | C195: Header
A196: txt_setPageОтчет | B196: [<set page="Отчет" tblDelim="|" areaEmptyCell="x" tblEmptyCell="0" tblMissEmptyStr="] + Iif(m.nEmptyRows = 1, [2], [1,2]) + ["/>] | C196: Header
A197: МФДатаПо | B197: DToC2000(__p_Date) | C197: Header
A198: МФИСТ | B198: m.cIST | C198: Header
A199: МФРуководитель | B199: This.__GetOrgBoss(__p_OrgRn, 2) | C199: Header
A200: МФГлБух | B200: This.__GetOrgAcc(__p_OrgRn, 2) | C200: Header
... 55 more rows

Sheet Выгрузка в ГНИ 4
A1: Путь к файлу выгрузки: | C1: E:\OBMEN\ОКРУЖКО\Выгрузка отчетов\ГНИ ф.721\NO_BOUCHR7_6446_6446_6446010014644601001_20160211_1.xml
G2: <textout version="1.0" caption="Выгрузка в ГНИ 4"/>
G3: <btn page="Выгрузка в ГНИ 4" coord="(450, 90, 100, 25)"/>
A4: Корень | B4: Файл | D4: * | J4: Файл обмена
A5: Атрибут | B5: ИдФайл | C5: NO_BOUCHR7_6446_6446_6446010014644601001_20160211_1 | D5: * | J5: Идентификатор файла
A6: Атрибут | B6: ВерсПрог | C6: ПАРУС Бухгалтерия | D6: * | J6: Версия передающей программы
A7: Атрибут | B7: ВерсФорм | C7: 5.02 | D7: * | J7: Версия формата
A8: Элемент | B8: Документ | D8: * | J8: Состав и структура документа
A9: Атрибут | B9: КНД | C9: 0503721 | D9: * | J9: Код формы отчетности по КНД
A10: Атрибут | B10: ДатаДок | C10: 11.02.2016 | D10: * | J10: Дата формирования документа
A11: Атрибут | B11: Период | C11: 34 | D11: * | J11: Отчетный период
A12: Атрибут | B12: ОтчетГод | C12: 2015 | D12: * | J12: Отчетный год
A13: Атрибут | B13: НомКорр | C13: 0 | D13: * | J13: Номер корректировки
A14: Элемент | B14: СвНП | D14: * | J14: Сведения о налогоплательщике
A15: Атрибут | B15: ОКПО | C15: 36172359 | J15: Код по ОКПО
A16: Атрибут | B16: ОКАТО | C16: 63440000000 | J16: Код по ОКАТО
A17: Атрибут | B17: ОКПО_Учр | J17: Код органа, осуществляющего полномочия учредителя по ОКПО
A18: Атрибут | B18: ГлаваБК | J18: Глава по БК
A19: Элемент | B19: НПЮЛ | D19: * | J19: Налогоплательщик – учреждение
A20: Атрибут | B20: НаимОрг | C20: УФК по Саратовской области (Фин. управление администрации Ртищевского муницип. района СОШ №3 ) | D20: * | J20: Наименование учреждения
A21: Атрибут | B21: ИННЮЛ | C21: 6446010014 | D21: * | J21: ИНН учреждения
A22: Атрибут | B22: КПП | C22: 644601001 | D22: * | J22: КПП учреждения
A23: Атрибут | B23: НаимОП | J23: Наименование обособленного подразделения
A24: Атрибут | B24: Учредит | J24: Учредитель
A25: Атрибут | B25: УчредПолн | J25: Наименование органа, осуществляющего полномочия учредителя
A26: ###
A27: ###
A28: Элемент | B28: Подписант | D28: * | J28: Сведения о лице, подписавшем документ
A29: Атрибут | B29: ПрПодп | C29: 1 | D29: * | J29: Признак лица, подписавшего документ (1 - руководитель, 2 – уполномоченный представитель)
A30: Атрибут | B30: Тлф | J30: Номер контактного телефона
A31: Атрибут | B31: E-mail | J31: E-mail
A32: Элемент | B32: ФИО | D32: * | J32: Фамилия, имя, отчество руководителя (уполномоченного представителя)
A33: Атрибут | B33: Фамилия | C33: Рудаева | D33: * | J33: Фамилия
A34: Атрибут | B34: Имя | C34: Светлана | D34: * | J34: Имя
A35: Атрибут | B35: Отчество | C35: Владимировна | J35: Отчество
A36: ###
A37: Элемент | B37: ФИОГлБух | J37: Фамилия, имя, отчество главного бухгалтера
A38: Атрибут | B38: Фамилия | C38: Окружко | D38: * | J38: Фамилия
A39: Атрибут | B39: Имя | C39: Наталья | D39: * | J39: Имя
A40: Атрибут | B40: Отчество | C40: Григорьевна | J40: Отчество
A41: ###
A42: Элемент | B42: СвПред | J42: Сведения об уполномоченном представителе
A43: Атрибут | B43: НаимДок | D43: * | J43: Наименование документа, подтверждающего полномочия представителя
A44: ###
A45: ###
A46: Элемент | B46: ОтчетФинРез | D46: * | J46: Отчет об исполнении учреждением плана его финансово-хозяйственной деятельности
A47: Атрибут | B47: ДатаОтч | C47: 11.02.2016 | D47: * | J47: Дата, на которую сформирован документ
A48: Атрибут | B48: ОКЕИ | C48: 383 | D48: * | J48: Код единицы измерения по ОКЕИ
A49: Элемент | B49: Доход
A50: Элемент | B50: ДохВс | D50: * | J50: Доходы - всего
A51: Атрибут | B51: КодАналит | C51: =Отчет!J16 -> 100 | J51: Код аналитики
A52: Атрибут | B52: ЦелевСред | C52: =Отчет!K16 -> 578747.06 | J52: Деятельность с целевыми средствами
A53: Атрибут | B53: ОказУслуг | C53: =Отчет!L16 -> 23534272.7 | J53: Деятельность по оказанию услуг (работ)
A54: Атрибут | B54: СрВремРасп | C54: =Отчет!M16 -> 1531689.81 | J54: Средства во временном распоряжении
A55: Атрибут | B55: Итого | C55: =Отчет!N16 -> 25644709.57 | D55: * | J55: Итого
A56: ### | J56: ДохВс
A57: Элемент | B57: ДохСобств
A58: Атрибут | B58: КодАналит | C58: =Отчет!J17 -> 120 | J58: Код аналитики
A59: Атрибут | B59: ЦелевСред | C59: =Отчет!K17 -> 0 | J59: Деятельность с целевыми средствами
A60: Атрибут | B60: ОказУслуг | C60: =Отчет!L17 -> 0 | J60: Деятельность по оказанию услуг (работ)
A61: Атрибут | B61: СрВремРасп | C61: =Отчет!M17 -> 0 | J61: Средства во временном распоряжении
A62: Атрибут | B62: Итого | C62: =Отчет!N17 -> 0 | D62: * | J62: Итого
A63: ### | J63: ДохСобств
A64: Элемент | B64: ДохПлатУсл
A65: Атрибут | B65: КодАналит | C65: =Отчет!J18 -> 130 | J65: Код аналитики
A66: Атрибут | B66: ЦелевСред | C66: =Отчет!K18 -> 0 | J66: Деятельность с целевыми средствами
A67: Атрибут | B67: ОказУслуг | C67: =Отчет!L18 -> 0 | J67: Деятельность по оказанию услуг (работ)
A68: Атрибут | B68: СрВремРасп | C68: =Отчет!M18 -> 1531689.81 | J68: Средства во временном распоряжении
A69: Атрибут | B69: Итого | C69: =Отчет!N18 -> 1531689.81 | D69: * | J69: Итого
A70: ### | J70: ДохПлатУсл
A71: Элемент | B71: ДохШтраф | J71: Доходы от штрафов, пени, иных сумм принудительного изъятия
A72: Атрибут | B72: КодАналит | C72: =Отчет!J19 -> 140 | J72: Код аналитики
A73: Атрибут | B73: ЦелевСред | C73: =Отчет!K19 -> 0 | J73: Деятельность с целевыми средствами
A74: Атрибут | B74: ОказУслуг | C74: =Отчет!L19 -> 0 | J74: Деятельность по оказанию услуг (работ)
A75: Атрибут | B75: СрВремРасп | C75: =Отчет!M19 -> 0 | J75: Средства во временном распоряжении
A76: Атрибут | B76: Итого | C76: =Отчет!N19 -> 0 | D76: * | J76: Итого
A77: ### | J77: ДохШтраф
A78: Элемент | B78: БВПостБюдж | J78: Безвозмездные поступления от бюджетов
A79: Элемент | B79: БВПостБюджВс | D79: * | J79: Безвозмездные поступления от бюджетов - всего
A80: Атрибут | B80: КодАналит | C80: =Отчет!J20 -> 150 | J80: Код аналитики
A81: Атрибут | B81: ЦелевСред | C81: =Отчет!K20 -> 0 | J81: Деятельность с целевыми средствами
A82: Атрибут | B82: ОказУслуг | C82: =Отчет!L20 -> 0 | J82: Деятельность по оказанию услуг (работ)
A83: Атрибут | B83: СрВремРасп | C83: =Отчет!M20 -> 0 | J83: Средства во временном распоряжении
A84: Атрибут | B84: Итого | C84: =Отчет!N20 -> 0 | D84: * | J84: Итого
A85: ###
A86: Элемент | B86: ПостИно | J86: Поступления от наднациональных организаций и правительств иностранных государств
A87: Атрибут | B87: КодАналит | C87: =Отчет!J23 -> 152 | J87: Код аналитики
A88: Атрибут | B88: ЦелевСред | C88: =Отчет!K23 -> 0 | J88: Деятельность с целевыми средствами
A89: Атрибут | B89: ОказУслуг | C89: =Отчет!L23 -> 0 | J89: Деятельность по оказанию услуг (работ)
A90: Атрибут | B90: СрВремРасп | C90: =Отчет!M23 -> 0 | J90: Средства во временном распоряжении
A91: Атрибут | B91: Итого | C91: =Отчет!N23 -> 0 | D91: * | J91: Итого
A92: ###
A93: Элемент | B93: ПостМФО | J93: Поступления от международных финансовых организаций
A94: Атрибут | B94: КодАналит | C94: =Отчет!J24 -> 153 | J94: Код аналитики
A95: Атрибут | B95: ЦелевСред | C95: =Отчет!K24 -> 0 | J95: Деятельность с целевыми средствами
A96: Атрибут | B96: ОказУслуг | C96: =Отчет!L24 -> 0 | J96: Деятельность по оказанию услуг (работ)
A97: Атрибут | B97: СрВремРасп | C97: =Отчет!M24 -> 0 | J97: Средства во временном распоряжении
A98: Атрибут | B98: Итого | C98: =Отчет!N24 -> 0 | D98: * | J98: Итого
A99: ###
A100: ### | J100: БВПостБюдж
A101: Элемент | B101: ДохАктив | J101: Доходы от операций с активами
A102: Элемент | B102: ДохАктивВс | D102: * | J102: Доходы от операций с активами - всего
A103: Атрибут | B103: КодАналит | C103: =Отчет!J25 -> 170 | J103: Код аналитики
A104: Атрибут | B104: ЦелевСред | C104: =Отчет!K25 -> 0 | J104: Деятельность с целевыми средствами
A105: Атрибут | B105: ОказУслуг | C105: =Отчет!L25 -> -328565.4 | J105: Деятельность по оказанию услуг (работ)
A106: Атрибут | B106: СрВремРасп | C106: =Отчет!M25 -> 0 | J106: Средства во временном распоряжении
A107: Атрибут | B107: Итого | C107: =Отчет!N25 -> -328565.4 | D107: * | J107: Итого
A108: ###
A109: Элемент | B109: ПереоцАкт | J109: Доходы от переоценки активов
A110: Атрибут | B110: КодАналит | C110: =Отчет!J27 -> 171 | J110: Код аналитики
A111: Атрибут | B111: ЦелевСред | C111: =Отчет!K27 -> 0 | J111: Деятельность с целевыми средствами
A112: Атрибут | B112: ОказУслуг | C112: =Отчет!L27 -> 0 | J112: Деятельность по оказанию услуг (работ)
A113: Атрибут | B113: СрВремРасп | C113: =Отчет!M27 -> 0 | J113: Средства во временном распоряжении
A114: Атрибут | B114: Итого | C114: =Отчет!N27 -> 0 | D114: * | J114: Итого
A115: ###
A116: Элемент | B116: РеализАкт | J116: Доходы от реализации активов
A117: Атрибут | B117: КодАналит | C117: =Отчет!J28 -> 172 | J117: Код аналитики
A118: Атрибут | B118: ЦелевСред | C118: =Отчет!K28 -> 0 | J118: Деятельность с целевыми средствами
A119: Атрибут | B119: ОказУслуг | C119: =Отчет!L28 -> -328565.4 | J119: Деятельность по оказанию услуг (работ)
A120: Атрибут | B120: СрВремРасп | C120: =Отчет!M28 -> 0 | J120: Средства во временном распоряжении
A121: Атрибут | B121: Итого | C121: =Отчет!N28 -> -328565.4 | D121: * | J121: Итого
A122: ###
A123: Элемент | B123: ДохРеализНеФА | J123: Доходы от реализации нефинансовых активов
A124: Атрибут | B124: КодАналит | C124: =Отчет!J30 -> 172 | J124: Код аналитики
A125: Атрибут | B125: ЦелевСред | C125: =Отчет!K30 -> 0 | J125: Деятельность с целевыми средствами
A126: Атрибут | B126: ОказУслуг | C126: =Отчет!L30 -> -328565.4 | J126: Деятельность по оказанию услуг (работ)
A127: Атрибут | B127: СрВремРасп | C127: =Отчет!M30 -> 0 | J127: Средства во временном распоряжении
A128: Атрибут | B128: Итого | C128: =Отчет!N30 -> -328565.4 | D128: * | J128: Итого
A129: ###
A130: Элемент | B130: ДохРеализФА | J130: Доходы от реализации финансовых активов
A131: Атрибут | B131: КодАналит | C131: =Отчет!J31 -> 172 | J131: Код аналитики
A132: Атрибут | B132: ЦелевСред | C132: =Отчет!K31 -> 0 | J132: Деятельность с целевыми средствами
A133: Атрибут | B133: ОказУслуг | C133: =Отчет!L31 -> 0 | J133: Деятельность по оказанию услуг (работ)
A134: Атрибут | B134: СрВремРасп | C134: =Отчет!M31 -> 0 | J134: Средства во временном распоряжении
A135: Атрибут | B135: Итого | C135: =Отчет!N31 -> 0 | D135: * | J135: Итого
A136: ###
A137: Элемент | B137: ЧрДохОпАкт | J137: Чрезвычайные доходы от операций с активами
A138: Атрибут | B138: КодАналит | C138: =Отчет!J32 -> 173 | J138: Код аналитики
A139: Атрибут | B139: ЦелевСред | C139: =Отчет!K32 -> 0 | J139: Деятельность с целевыми средствами
A140: Атрибут | B140: ОказУслуг | C140: =Отчет!L32 -> 0 | J140: Деятельность по оказанию услуг (работ)
A141: Атрибут | B141: СрВремРасп | C141: =Отчет!M32 -> 0 | J141: Средства во временном распоряжении
A142: Атрибут | B142: Итого | C142: =Отчет!N32 -> 0 | D142: * | J142: Итого
A143: ###
A144: ### | J144: ДохАктив
A145: Элемент | B145: ДохПроч | J145: Прочие доходы
A146: Элемент | B146: ДохПрочВс | D146: * | J146: Прочие доходы - всего
A147: Атрибут | B147: КодАналит | C147: =Отчет!J33 -> 180 | J147: Код аналитики
A148: Атрибут | B148: ЦелевСред | C148: =Отчет!K33 -> 578747.06 | J148: Деятельность с целевыми средствами
A149: Атрибут | B149: ОказУслуг | C149: =Отчет!L33 -> 23862838.1 | J149: Деятельность по оказанию услуг (работ)
A150: Атрибут | B150: СрВремРасп | C150: =Отчет!M33 -> 0 | J150: Средства во временном распоряжении
A151: Атрибут | B151: Итого | C151: =Отчет!N33 -> 24441585.16 | D151: * | J151: Итого
A152: ###
A153: Элемент | B153: СубГосЗадан | J153: Прочие доходы по субсидии на выполнение государственного (муниципального) задания
A154: Атрибут | B154: КодАналит | C154: =Отчет!J35 -> 180 | J154: Код аналитики
A155: Атрибут | B155: ЦелевСред | C155: =Отчет!K35 -> 578747.06 | J155: Деятельность с целевыми средствами
A156: Атрибут | B156: ОказУслуг | C156: =Отчет!L35 -> 23862838.1 | J156: Деятельность по оказанию услуг (работ)
A157: Атрибут | B157: СрВремРасп | C157: =Отчет!M35 -> 0 | J157: Средства во временном распоряжении
A158: Атрибут | B158: Итого | C158: =Отчет!N35 -> 24441585.16 | D158: * | J158: Итого
A159: ###
A160: Элемент | B160: СубИнЦел | J160: Прочие доходы по субсидиям на иные цели
A161: Атрибут | B161: КодАналит | C161: =Отчет!J36 -> 180 | J161: Код аналитики
A162: Атрибут | B162: ЦелевСред | C162: =Отчет!K36 -> 0 | J162: Деятельность с целевыми средствами
A163: Атрибут | B163: ОказУслуг | C163: =Отчет!L36 -> 0 | J163: Деятельность по оказанию услуг (работ)
A164: Атрибут | B164: СрВремРасп | C164: =Отчет!M36 -> 0 | J164: Средства во временном распоряжении
A165: Атрибут | B165: Итого | C165: =Отчет!N36 -> 0 | D165: * | J165: Итого
A166: ###
A167: Элемент | B167: БюджИнвест | J167: Прочие доходы по бюджетным инвестициям
A168: Атрибут | B168: КодАналит | C168: =Отчет!J37 -> 180 | J168: Код аналитики
A169: Атрибут | B169: ЦелевСред | C169: =Отчет!K37 -> 0 | J169: Деятельность с целевыми средствами
A170: Атрибут | B170: ОказУслуг | C170: =Отчет!L37 -> 0 | J170: Деятельность по оказанию услуг (работ)
A171: Атрибут | B171: СрВремРасп | C171: =Отчет!M37 -> 0 | J171: Средства во временном распоряжении
A172: Атрибут | B172: Итого | C172: =Отчет!N37 -> 0 | D172: * | J172: Итого
A173: ###
A174: Элемент | B174: ДохИные | J174: Иные прочие доходы
A175: Атрибут | B175: КодАналит | C175: =Отчет!J38 -> 180 | J175: Код аналитики
A176: Атрибут | B176: ЦелевСред | C176: =Отчет!K38 -> 0 | J176: Деятельность с целевыми средствами
A177: Атрибут | B177: ОказУслуг | C177: =Отчет!L38 -> 0 | J177: Деятельность по оказанию услуг (работ)
A178: Атрибут | B178: СрВремРасп | C178: =Отчет!M38 -> 0 | J178: Средства во временном распоряжении
A179: Атрибут | B179: Итого | C179: =Отчет!N38 -> 0 | D179: * | J179: Итого
A180: ###
A181: ### | J181: ДохПроч
A182: Элемент | B182: ДохБудущПер | D182: * | J182: Доходы будущих периодов
A183: Атрибут | B183: КодАналит | C183: =Отчет!J39 -> 100 | J183: Код аналитики
A184: Атрибут | B184: ЦелевСред | C184: =Отчет!K39 -> 0 | J184: Деятельность с целевыми средствами
A185: Атрибут | B185: ОказУслуг | C185: =Отчет!L39 -> 0 | J185: Деятельность по оказанию услуг (работ)
A186: Атрибут | B186: СрВремРасп | C186: =Отчет!M39 -> 0 | J186: Средства во временном распоряжении
A187: Атрибут | B187: Итого | C187: =Отчет!N39 -> 0 | D187: * | J187: Итого
A188: ### | J188: ДохБудущПер
A189: ### | J189: Доход
A190: Элемент | B190: Расход | J190: Расходы
A191: Элемент | B191: РасхВс | D191: * | J191: Расходы - всего
A192: Атрибут | B192: КодАналит | C192: =Отчет!J45 -> 200 | J192: Код аналитики
A193: Атрибут | B193: ЦелевСред | C193: =Отчет!K45 -> 580265.13 | J193: Деятельность с целевыми средствами
A194: Атрибут | B194: ОказУслуг | C194: =Отчет!L45 -> 26980709.27 | J194: Деятельность по оказанию услуг (работ)
A195: Атрибут | B195: СрВремРасп | C195: =Отчет!M45 -> 1524742.76 | J195: Средства во временном распоряжении
A196: Атрибут | B196: Итого | C196: =Отчет!N45 -> 29085717.16 | D196: * | J196: Итого
A197: ### | J197: РасхВс
A198: Элемент | B198: ОплатТруд | J198: Оплата труда и начисления на выплаты по оплате труда
A199: Элемент | B199: ОплатТрудВс | D199: * | J199: Оплата труда и начисления на выплаты по оплате труда - всего
A200: Атрибут | B200: КодАналит | C200: =Отчет!J46 -> 210 | J200: Код аналитики
... 590 more rows
